fUST/lending_fUST_20240329
["ID","MTS","AMOUNT","RATE_DAILY","PERIOD"]
[320942671,1711720244226,-500.0,0.00052054,120]
[320942673,1711720244235,-500.0,0.00052054,120]
[320942675,1711720244244,-535.65193395,0.00052054,120]
[320942676,1711720244253,-500.0,0.00052054,120]
[320942678,1711720244262,-500.0,0.00052054,120]
[320942680,1711720244272,-479.70862915,0.00052054,120]
[320942682,1711720244281,-501.93913694,0.00052054,120]
[320942685,1711720244292,-500.0,0.00052054,120]
[320942687,1711720244301,-500.0,0.00052054,120]
[320942689,1711720244309,-500.0,0.00052054,120]
[320942691,1711720244319,-500.0,0.00052054,120]
[320942693,1711720244328,-500.0,0.00052054,120]
[320942695,1711720244337,-500.0,0.00052054,120]
[320942697,1711720244346,-500.0,0.00052054,120]
[320942699,1711720244355,-500.0,0.00052054,120]
[320942700,1711720244366,-500.0,0.00052054,120]
[320942702,1711720244376,-500.0,0.00052054,120]
[320942705,1711720244388,-500.0,0.00052054,120]
[320942706,1711720244397,-500.0,0.00052054,120]
[320942708,1711720244411,-500.0,0.00052054,120]
[320942711,1711720244420,-500.0,0.00052054,120]
[320942713,1711720244429,-500.44469557,0.00052054,120]
[320942715,1711720244438,-493.623136,0.00052054,120]
[320942717,1711720244448,-229.88543689,0.00052054,120]
[320942718,1711720244457,-619.53209045,0.00052054,120]
[320942720,1711720244466,-500.0,0.00052054,120]
[320942722,1711720244476,-500.0,0.00052054,120]
[320942724,1711720244486,-500.0,0.00052054,120]
[320942727,1711720244496,-500.0,0.00052054,120]
[320942729,1711720244509,-500.0,0.00052054,120]
[320942731,1711720244519,-500.0,0.00052054,120]
[320942733,1711720244528,-500.0,0.00052054,120]
[320942735,1711720244537,-500.0,0.00052054,120]
[320942737,1711720244546,-500.0,0.00052054,120]
[320942739,1711720244555,-2339.32,0.00052054,120]
[320942741,1711720244564,-500.0,0.00052054,120]
[320942743,1711720244573,-500.0,0.00052054,120]
[320942745,1711720244583,-500.0,0.00052054,120]
[320942747,1711720244592,-502.23026952,0.00052054,120]
[320942749,1711720244601,-500.0,0.00052054,120]
[320942751,1711720244610,-14.04981299,0.00052054,120]
[320949327,1711720480228,36686.93208839,0.000275,2]
[320949330,1711720480837,8313.06791161,0.0002877,2]
[320949331,1711720480862,22301.82997273,0.0002877,2]
[320949332,1711720482399,18651.51965267,0.0002509,2]
[320949335,1711720486165,-16304.0,0.00037,30]
[320949347,1711720553783,-6955.10724195,0.0003663,2]
[320949348,1711720553804,-9.78162758,0.00037,30]
[320949349,1711720553826,-140.11113047,0.00037,4]
[320949350,1711720621910,-6955.10724195,0.0003663,2]
[320949351,1711720621932,-14.87337108,0.00037,4]
[320949352,1711720621956,-515.60592498,0.00037,4]
[320949353,1711720621978,-137.41346199,0.00037,4]
[320949354,1711720685654,-4029.37662719,0.0003663,2]
[320949355,1711720685675,-52.7955415,0.00037,4]
[320949356,1711720685697,-140.82783131,0.00037,2]
[320949358,1711720756022,-14.15667024,0.00037,2]
[320949359,1711720756042,-225.72392783,0.00037,4]
[320949360,1711720756068,-190.20900349,0.00037,4]
[320949361,1711720756098,-154.98450155,0.00037,4]
[320949362,1711720756126,-15023.92589689,0.00037,4]
[320950002,1711720825121,-5182.0,0.0003663,2]
[320950003,1711720825142,-300.0,0.00036999,3]
[320950004,1711720825163,-247.82932503,0.00037,4]
[320950005,1711720825184,-212.80738258,0.00037,4]
[320950006,1711720825204,-164.59657619,0.00037,2]
[320950007,1711720825225,-18896.7667162,0.00037,4]
[320950012,1711720894670,-1492.14929504,0.00037,4]
[320950013,1711720894692,-190.20900349,0.00037,4]
[320950014,1711720894713,-921.02250636,0.00039633,4]
[320950015,1711720894733,-185.135601,0.00040372,120]
[320950016,1711720894753,-216.89597,0.00040374,2]
[320950017,1711720894773,-250.0,0.00040374,2]
[320950018,1711720894794,-166.666666,0.00041096,2]
[320950019,1711720894814,-204.48979067,0.00041584,2]
[320950020,1711720894834,-325.01431499,0.00041682,4]
[320950021,1711720894854,-3436.5966737,0.00041683,4]
[320950022,1711720894874,-2408.63698845,0.00041683,2]
[320950023,1711720894895,-1922.02642136,0.00041719,4]
[320950024,1711720894916,-170.58466675,0.00041719,4]
[320950025,1711720894936,-155.0,0.00041719,4]
[320950026,1711720894956,-228.33331082,0.0004172,4]
[320950027,1711720894976,-622.16209645,0.0004172,4]
[320950028,1711720894997,-155.43798253,0.0004172,2]
[320950029,1711720895018,-166.666666,0.00042058,2]
[320950030,1711720895039,-166.666666,0.00043019,2]
[320950031,1711720895060,-166.666666,0.00043981,2]
[320950032,1711720895080,-166.666666,0.00044942,2]
[320950033,1711720895102,-166.666666,0.00045904,2]
[320950034,1711720895122,-267.504321,0.00046575,2]
[320950035,1711720906123,297.3394679,0.00037,4]
[320950383,1711721438032,-150.0,0.000349,2]
[320950385,1711721438042,-877.371088,0.00038,2]
[320950387,1711721438053,-722.628912,0.00038,2]
[320950389,1711721438063,-173.22330138,0.00041569,2]
[320950391,1711721438073,-4939.43414611,0.00041662,2]
[320950393,1711721438082,-318.31479667,0.00041662,2]
[320950395,1711721438091,-20612.04626079,0.00041662,2]
[320950397,1711721438100,-776.92613783,0.00041662,2]
[320950399,1711721438110,-284.88766192,0.00041662,2]
[320950401,1711721438119,-3145.90433303,0.00041662,2]
[320950403,1711721438128,-1239.27758761,0.00041662,2]
[320950405,1711721438137,-251.73793338,0.00041662,2]
[320950407,1711721438147,-12166.79686871,0.00041662,2]
[320950409,1711721438155,-263.09030592,0.00041662,2]
[320950411,1711721438165,-621.2728139,0.00041662,2]
[320950412,1711721438176,-3979.75334903,0.00041662,2]
[320950414,1711721438185,-1001.82366865,0.00041662,2]
[320950416,1711721438195,-644.85391162,0.00041662,30]
[320950418,1711721438205,-1000.0,0.00041684,2]
[320950421,1711721438214,-380.0,0.00041716,120]
[320950423,1711721438224,-173.22330138,0.00045857,2]
[320950424,1711721438233,-267.504321,0.00046575,2]
[320950426,1711721438243,-216.89597,0.0004679,2]
[320950428,1711721438252,-185.135601,0.00048196,120]
[320950431,1711721438261,-197.0030957,0.0004867,2]
[320950432,1711721438271,-1027.371088,0.00049,30]
[320950435,1711721438281,-24900.0,0.00049177,2]
[320950437,1711721438290,-500.0,0.00049998,120]
[320950438,1711721438299,-500.0,0.00049998,120]
[320950440,1711721438309,-408.65698422,0.00049998,120]
[320950442,1711721438318,-155.80068588,0.00049998,4]
[320950444,1711721438328,-154.98450155,0.00049998,4]
[320950446,1711721438337,-155.99996299,0.00049998,4]
[320950449,1711721438347,-2479.79152561,0.00049998,120]
[320950451,1711721438356,-369.77143074,0.00049998,4]
[320950453,1711721438366,-2978.94595681,0.00049999,4]
[320950454,1711721438376,-2946.35042879,0.00049999,4]
[320950456,1711721438385,-1842.03,0.00049999,7]
[320950459,1711721438396,-991.36301155,0.00049999,5]
[320950461,1711721438404,-1842.03,0.00049999,7]
[320950463,1711721438414,-159.06388875,0.00049999,120]
[320950465,1711721438425,-406.93883411,0.00049999,120]
[320950467,1711721438435,-497.85270195,0.00049999,120]
[320950469,1711721438444,-500.0,0.00049999,120]
[320950471,1711721438453,-523.97300997,0.00049999,120]
[320950473,1711721438462,-180.72627993,0.0005,61]
[320950474,1711721438471,-4578.57802518,0.0005,120]
[320950477,1711721438483,-2925.27909148,0.0005,120]
[320950659,1711721440233,-1710.68816458,0.0005,120]
[320950662,1711721440249,-22324.43349428,0.0005,120]
[320950664,1711721440261,-360.41934378,0.0005,4]
[320950667,1711721440273,-150.0,0.0005,120]
[320950669,1711721440286,-47615.01665996,0.0005,2]
[320950961,1711721443267,-1131.2,0.0005,2]
[320950964,1711721443282,-5973.42490435,0.0005,2]
[320950969,1711721443325,-1542.80716495,0.0005,2]
[320950972,1711721443340,-1804.323423,0.0005,2]
[320950974,1711721443355,-19933.22784774,0.0005,2]
[320950977,1711721443367,-173.22330138,0.00050144,2]
[320950979,1711721443380,-997.426602,0.00050245,30]
[320950981,1711721443392,-456.283486,0.00050245,30]
[320950985,1711721443404,-153.0,0.000503,2]
[320950988,1711721443415,-153.0,0.000503,2]
[320950990,1711721443425,-153.0,0.000503,2]
[320950992,1711721443435,-202.1102686,0.000503,2]
[320950994,1711721443445,-153.0,0.000503,2]
[320950996,1711721443455,-153.0,0.000503,2]
[320950998,1711721443466,-202.1102686,0.000503,2]
[320951001,1711721443479,-153.0,0.000503,2]
[320951003,1711721443491,-202.1102686,0.000503,2]
[320951005,1711721443503,-153.0,0.000503,2]
[320951007,1711721443514,-153.0,0.000503,2]
[320951010,1711721443527,-153.0,0.000503,2]
[320951012,1711721443537,-202.1102686,0.000503,2]
[320951014,1711721443547,-202.1102686,0.000503,2]
[320951016,1711721443557,-202.1102686,0.000503,2]
[320951018,1711721443567,-202.1102686,0.000503,2]
[320951020,1711721443579,-202.1102686,0.000503,2]
[320951022,1711721443590,-167.658933,0.00050764,2]
[320951024,1711721443600,-997.426602,0.00050873,30]
[320951027,1711721443611,-204.75542379,0.00050873,30]
[320951029,1711721443624,-251.52806221,0.00050873,30]
[320951031,1711721443637,-376.66672218,0.0005091,120]
[320951034,1711721443647,-500.0,0.00051054,120]
[320951036,1711721443658,-500.0,0.00051054,120]
[320951038,1711721443668,-500.0,0.00051054,120]
[320951040,1711721443680,-500.0,0.00051054,120]
[320951042,1711721443690,-500.0,0.00051054,120]
[320951044,1711721443701,-500.0,0.00051054,120]
[320951046,1711721443711,-500.0,0.00051054,120]
[320951049,1711721443724,-545.64,0.00051054,120]
[320951051,1711721443735,-997.426602,0.00051501,30]
[320951053,1711721443745,-456.283486,0.00051501,30]
[320951055,1711721443756,-1000.0,0.00051954,2]
[320951057,1711721443767,-4107.48060533,0.00052,15]
[320951059,1711721443778,-158.0,0.00052,120]
[320951060,1711721443788,-1034.42452212,0.00052,82]
[320951378,1711721446606,-1560.14801188,0.00052,82]
[320951380,1711721446615,-684.30913271,0.00052052,4]
[320951382,1711721446625,-1611.15839058,0.00052052,4]
[320951384,1711721446634,-305.26973909,0.00052052,4]
[320951386,1711721446643,-239.61530325,0.00052052,4]
[320951388,1711721446652,-2084.08692195,0.00052053,4]
[320951391,1711721446663,-500.0,0.00052054,120]
[320951393,1711721446672,-500.0,0.00052054,120]
[320951394,1711721446682,-500.0,0.00052054,120]
[320951396,1711721446691,-925.66693327,0.00052054,4]
[320951398,1711721446700,-500.0,0.00052054,120]
[320951401,1711721446710,-1266.17,0.00052054,120]
[320951402,1711721446722,-500.0,0.00052054,120]
[320951404,1711721446735,-1452.92,0.00052054,2]
[320951406,1711721446746,-500.0,0.00052054,120]
[320951408,1711721446755,-500.0,0.00052054,120]
[320951410,1711721446765,-500.0,0.00052054,120]
[320951412,1711721446775,-500.0,0.00052054,120]
[320951415,1711721446785,-500.0,0.00052054,120]
[320951417,1711721446795,-500.0,0.00052054,120]
[320951418,1711721446805,-500.0,0.00052054,120]
[320951421,1711721446815,-592.92539979,0.00052054,120]
[320951423,1711721446825,-1082.08,0.00052054,120]
[320951425,1711721446834,-500.0,0.00052054,120]
[320951427,1711721446844,-500.0,0.00052054,120]
[320951429,1711721446853,-505.76903647,0.00052054,120]
[320951431,1711721446862,-500.0,0.00052054,120]
[320951433,1711721446871,-500.0,0.00052054,120]
[320951434,1711721446880,-500.0,0.00052054,120]
[320951436,1711721446889,-500.0,0.00052054,120]
[320951438,1711721446898,-500.0,0.00052054,120]
[320951440,1711721446908,-500.0,0.00052054,120]
[320951442,1711721446917,-500.0,0.00052054,120]
[320951444,1711721446926,-500.0,0.00052054,120]
[320951446,1711721446937,-503.88,0.00052054,120]
[320951448,1711721446946,-500.0,0.00052054,120]
[320951450,1711721446956,-500.0,0.00052054,120]
[320951452,1711721446965,-500.0,0.00052054,120]
[320951454,1711721446975,-395.05218298,0.00052054,120]
[320951456,1711721446984,-500.0,0.00052054,120]
[320951459,1711721446994,-500.0,0.00052054,120]
[320951461,1711721447003,-500.67422607,0.00052054,120]
[320951463,1711721447013,-596.76450324,0.00052054,120]
[320951465,1711721447023,-500.0,0.00052054,120]
[320951467,1711721447032,-500.0,0.00052054,120]
[320951468,1711721447042,-500.0,0.00052054,120]
[320951470,1711721447051,-500.0,0.00052054,120]
[320951473,1711721447061,-500.0,0.00052054,120]
[320951474,1711721447069,-500.0,0.00052054,120]
[320951476,1711721447079,-500.0,0.00052054,120]
[320951479,1711721447088,-500.0,0.00052054,120]
[320951481,1711721447097,-180.53033416,0.00052054,120]
[320951483,1711721447106,-500.816058,0.00052054,120]
[320951485,1711721447116,-500.0,0.00052054,120]
[320951487,1711721447125,-500.0,0.00052054,120]
[320951489,1711721447134,-500.0,0.00052054,120]
[320951491,1711721447143,-500.0,0.00052054,120]
[320951493,1711721447153,-164.13192605,0.00052054,120]
[320951495,1711721447162,-500.0,0.00052054,120]
[320951497,1711721447171,-500.0,0.00052054,120]
[320951499,1711721447180,-500.0,0.00052054,120]
[320951501,1711721447188,-500.0,0.00052054,120]
[320951503,1711721447198,-500.0,0.00052054,120]
[320951505,1711721447207,-299.10497638,0.00052054,120]
[320951507,1711721447216,-500.0,0.00052054,120]
[320951508,1711721447226,-500.0,0.00052054,120]
[320951510,1711721447236,-500.0,0.00052054,120]
[320951512,1711721447245,-500.0,0.00052054,120]
[320951514,1711721447254,-500.0,0.00052054,120]
[320951516,1711721447263,-170.82896559,0.00052054,120]
[320951518,1711721447272,-500.0,0.00052054,120]
[320951520,1711721447282,-500.0,0.00052054,120]
[320951522,1711721447291,-502.81767342,0.00052054,120]
[320951524,1711721447304,-500.0,0.00052054,120]
[320951526,1711721447313,-500.0,0.00052054,120]
[320951528,1711721447322,-500.0,0.00052054,120]
[320951530,1711721447332,-151.0,0.00052054,7]
[320951533,1711721447341,-151.0,0.00052054,7]
[320951534,1711721447351,-500.0,0.00052054,120]
[320951536,1711721447360,-500.0,0.00052054,120]
[320951538,1711721447369,-500.0,0.00052054,120]
[320951540,1711721447378,-2744.82045725,0.00052054,120]
[320951542,1711721447387,-500.0,0.00052054,120]
[320951544,1711721447397,-500.0,0.00052054,120]
[320951546,1711721447407,-397.12907644,0.00052054,120]
[320951548,1711721447417,-428.97067938,0.00052054,120]
[320951550,1711721447426,-500.0,0.00052054,120]
[320951552,1711721447436,-500.0,0.00052054,120]
[320951554,1711721447446,-504.26248706,0.00052054,120]
[320951556,1711721447456,-500.0,0.00052054,120]
[320951558,1711721447465,-500.0,0.00052054,120]
[320951560,1711721447475,-500.0,0.00052054,120]
[320951562,1711721447484,-1354.84,0.00052054,120]
[320951564,1711721447494,-500.0,0.00052054,120]
[320951566,1711721447503,-2806.64,0.00052054,120]
[320951568,1711721447512,-500.0,0.00052054,120]
[320951570,1711721447522,-2241.85,0.00052054,120]
[320951572,1711721447531,-500.0,0.00052054,120]
[320951574,1711721447540,-500.0,0.00052054,120]
[320951576,1711721447549,-500.0,0.00052054,120]
[320951578,1711721447559,-500.0,0.00052054,120]
[320951580,1711721447567,-500.0,0.00052054,120]
[320951582,1711721447577,-502.64247285,0.00052054,120]
[320951584,1711721447586,-1541.87,0.00052054,120]
[320951586,1711721447596,-500.0,0.00052054,120]
[320951588,1711721447605,-500.0,0.00052054,120]
[320951590,1711721447614,-9442.46,0.00052054,120]
[320951592,1711721447623,-500.0,0.00052054,120]
[320951594,1711721447633,-993.4,0.00052054,120]
[320951596,1711721447642,-500.0,0.00052054,120]
[320951598,1711721447651,-638.91,0.00052054,120]
[320951600,1711721447661,-500.0,0.00052054,120]
[320951602,1711721447670,-1828.3,0.00052054,120]
[320951604,1711721447680,-538.25311586,0.00052054,120]
[320951606,1711721447689,-500.0,0.00052054,120]
[320951607,1711721447698,-948.95,0.00052054,120]
[320951609,1711721447706,-1103.57146081,0.00052054,120]
[320960472,1711721561647,-363.92827338,0.00049446,4]
[320960473,1711721561667,-315.7042279,0.00049447,4]
[320960474,1711721561687,-1460.01577155,0.00049448,4]
[320960475,1711721561707,-309.9070279,0.00049449,4]
[320960476,1711721561730,-976.44469927,0.000499,2]
[320960499,1711721695238,-500.0,0.00041668,2]
[320960521,1711721900561,-167.658928,0.00049797,2]
[320960522,1711721900584,-13.341072,0.000499,2]
[320960533,1711722035749,-164.0,0.00049502,2]
[320960540,1711722445845,-550.0,0.00049501,5]
[320960541,1711722445865,-121.0,0.00049502,4]
[320960542,1711722515630,-20093.82731676,0.00049502,4]
[320960543,1711722515653,-154.98450155,0.00049502,2]
[320960544,1711722515674,-2.666666,0.00049502,2]
[320960545,1711722515695,-443.52151569,0.00049861,2]
[320960546,1711722518990,10000.0,0.0003,2]
[320960551,1711722547039,10000.0,0.0003,2]
[320960699,1711722633052,-1841.66039267,0.00041617,4]
[320960702,1711722633069,-80.36602869,0.00041617,4]
[320960704,1711722633078,-230.0,0.00041618,3]
[320960706,1711722633087,-3401.97008514,0.00041619,10]
[320960710,1711722633103,-6598.02991486,0.00041619,10]
[320960713,1711722633112,-7597.89076348,0.00041619,10]
[320960717,1711722633123,-2402.10923652,0.00041619,10]
[320960720,1711722633134,-10000.0,0.00041619,10]
[320960723,1711722633143,-10000.0,0.00041619,10]
[320960726,1711722633152,-1392.88,0.00041619,10]
[320960727,1711722633161,-166.666666,0.00049323,2]
[320960730,1711722633170,-154.98450155,0.00049502,2]
[320960733,1711722633180,-253.76676051,0.00049861,2]
[320960736,1711722633190,-360.41934378,0.00050104,4]
[320960739,1711722633199,-185.135601,0.00050223,120]
[320960742,1711722633207,-156.39858452,0.00050225,4]
[320960745,1711722633217,-24900.0,0.00050226,2]
[320960748,1711722633228,-166.666666,0.00050667,2]
[320960751,1711722633237,-4603.38587361,0.0005091,120]
[320960753,1711722633246,-1004.0,0.00051,120]
[320960756,1711722633255,-157.0,0.00051,120]
[320960759,1711722633264,-480.43869147,0.00051325,2]
[320960761,1711722633274,-153.0,0.00051425,2]
[320960763,1711722633284,-480.43869143,0.00051482,2]
[320960765,1711722633293,-480.43869143,0.0005164,2]
[320960767,1711722633302,-3141.41499,0.0005169,120]
[320960769,1711722633311,-480.43869143,0.00051797,2]
[320960771,1711722633321,-300.46749993,0.00051883,14]
[320960773,1711722633330,-480.43869143,0.00051954,2]
[320960775,1711722633339,-1000.0,0.00051999,2]
[320960777,1711722633348,-3673.89696275,0.00052,15]
[320960779,1711722633357,-6672.44979405,0.00052,120]
[320960781,1711722633369,-3050.69322395,0.00052,120]
[320960783,1711722633378,-150.0,0.00052,82]
[320960785,1711722633386,-166.666666,0.00052012,2]
[320960786,1711722633396,-187.86952971,0.00052052,2]
[320960788,1711722633405,-216.14106538,0.00052052,4]
[320960790,1711722633413,-273.7114849,0.00052052,120]
[320960792,1711722633422,-258.09463406,0.00052052,4]
[320960794,1711722633431,-248.07796473,0.00052052,4]
[320960796,1711722633441,-301.32088983,0.00052052,4]
[320960902,1711722638392,-606.9141934,0.00049587,2]
[320960904,1711722638402,-384.73365849,0.00052052,4]
[320960906,1711722638412,-545.88465706,0.00052052,2]
[320960908,1711722638421,-780.7394247,0.00052052,4]
[320960910,1711722638430,-241.83291114,0.00052052,4]
[320960912,1711722638440,-1611.15839058,0.00052052,4]
[320960914,1711722638449,-171.03314433,0.00052052,4]
[320960916,1711722638458,-684.30913271,0.00052052,4]
[320960918,1711722638468,-3704.91014556,0.00052052,4]
[320960920,1711722638477,-171.92288229,0.00052052,4]
[320960922,1711722638486,-790.53540876,0.00052052,4]
[320960924,1711722638495,-398.40359856,0.00052053,2]
[320960926,1711722638504,-348.13520582,0.00052053,5]
[320960929,1711722638517,-651.86479418,0.00052053,5]
[320960931,1711722638526,-500.0,0.00052053,120]
[320960932,1711722638535,-459.96725576,0.00052053,120]
[320960934,1711722638544,-213.36544369,0.00052053,120]
[320960935,1711722638553,-609.16373099,0.00052053,120]
[320960936,1711722638563,-553.07459538,0.00052054,61]
[320961109,1711722640332,-499.77057786,0.00052053,7]
[320961112,1711722640345,-114.23942214,0.00052053,7]
[320961114,1711722640354,-1609.85764417,0.00052054,61]
[320961496,1711722643563,-3620.30871793,0.00052054,61]
[320961498,1711722643572,-480.87027453,0.00052054,120]
[320961504,1711722643623,-99.00628842,0.00052054,120]
[320961507,1711722643633,-925.66693327,0.00052054,4]
[320961509,1711722643655,-500.0,0.00052054,120]
[320961512,1711722643665,-500.0,0.00052054,120]
[320961514,1711722643675,-561.34177718,0.00052054,120]
[320961516,1711722643686,-401.08775935,0.00052054,120]
[320961518,1711722643697,-500.0,0.00052054,120]
[320961520,1711722643708,-500.0,0.00052054,120]
[320961522,1711722643720,-180.53033416,0.00052054,120]
[320961524,1711722643730,-530.6273919,0.00052054,120]
[320961526,1711722643740,-500.0,0.00052054,120]
[320961528,1711722643750,-500.0,0.00052054,120]
[320961530,1711722643759,-500.0,0.00052054,120]
[320961532,1711722643769,-500.0,0.00052054,120]
[320961534,1711722643779,-500.0,0.00052054,120]
[320961536,1711722643789,-500.0,0.00052054,120]
[320961538,1711722643798,-500.0,0.00052054,120]
[320961540,1711722643808,-202.15698065,0.00052054,120]
[320961800,1711722646364,-297.84301935,0.00052054,120]
[320961802,1711722646373,-500.0,0.00052054,120]
[320961804,1711722646382,-500.0,0.00052054,120]
[320961806,1711722646391,-500.0,0.00052054,120]
[320961808,1711722646400,-500.0,0.00052054,120]
[320961810,1711722646410,-500.0,0.00052054,120]
[320961812,1711722646419,-500.0,0.00052054,120]
[320961814,1711722646428,-500.0,0.00052054,120]
[320961816,1711722646437,-500.0,0.00052054,120]
[320961818,1711722646446,-500.0,0.00052054,120]
[320961820,1711722646455,-342.52906042,0.00052054,120]
[320961822,1711722646464,-500.0,0.00052054,120]
[320961824,1711722646473,-500.0,0.00052054,120]
[320961826,1711722646483,-502.17666,0.00052054,120]
[320961828,1711722646492,-500.0,0.00052054,120]
[320961830,1711722646502,-500.0,0.00052054,120]
[320961832,1711722646511,-500.0,0.00052054,120]
[320961834,1711722646520,-500.0,0.00052054,120]
[320961836,1711722646533,-500.0,0.00052054,120]
[320961838,1711722646542,-500.0,0.00052054,120]
[320961840,1711722646551,-500.0,0.00052054,120]
[320961842,1711722646560,-500.0,0.00052054,120]
[320961844,1711722646569,-500.0,0.00052054,120]
[320961846,1711722646578,-500.0,0.00052054,120]
[320961848,1711722646587,-500.0,0.00052054,120]
[320961850,1711722646596,-500.0,0.00052054,120]
[320961852,1711722646606,-500.0,0.00052054,120]
[320961854,1711722646615,-500.0,0.00052054,120]
[320961856,1711722646624,-500.0,0.00052054,120]
[320961858,1711722646633,-500.0,0.00052054,120]
[320961860,1711722646643,-500.0,0.00052054,120]
[320961862,1711722646653,-1349.69,0.00052054,120]
[320961864,1711722646662,-70.55901791,0.00052054,120]
[320961881,1711722646813,-270.34978087,0.00052054,120]
[320961882,1711722646823,-500.0,0.00052054,120]
[320961884,1711722646832,-500.0,0.00052054,120]
[320961886,1711722646841,-500.0,0.00052054,120]
[320961889,1711722646852,-612.29,0.00052054,120]
[320961891,1711722646861,-447.10202741,0.00052054,120]
[320962707,1711722655174,4830.66531589,0.0003,30]
[320966586,1711722732343,-167.0,0.00046849,4]
[320966607,1711723141114,-371.44493142,0.00046848,4]
[320966608,1711723141137,-19.55506858,0.00046849,4]
[320966609,1711723278063,-368.13431762,0.00046847,4]
[320966610,1711723278084,-131.86568238,0.00046848,4]
[320966669,1711723742619,-154.98450155,0.00044747,4]
[320966670,1711723742639,-150.01549845,0.00044748,2]
[320966714,1711723834728,-8.95437178,0.00044748,2]
[320966715,1711723834738,-39.86949944,0.00046849,4]
[320966716,1711723834748,-166.666666,0.00049272,2]
[320966717,1711723834758,-163.900309,0.00049725,120]
[320966718,1711723834767,-158.96987023,0.00049748,2]
[320966719,1711723834778,-3058.70478779,0.00049919,4]
[320966720,1711723834792,-2631.86950689,0.00049919,4]
[320966721,1711723834802,-260.0,0.00049919,5]
[320966722,1711723834811,-6816.67931617,0.0004992,2]
[320966723,1711723834822,-2749.44,0.0004992,2]
[320966724,1711723834834,-5356.75809753,0.0004992,2]
[320966725,1711723834843,-390.50336271,0.0005,120]
[320966726,1711723834852,-360.41934378,0.00050615,4]
[320966727,1711723834862,-166.666666,0.00050616,2]
[320966728,1711723834871,-322.1774809,0.00050958,120]
[320966729,1711723834880,-159.0,0.00051,120]
[320966730,1711723834889,-153.61016899,0.00051027,120]
[320966768,1711723838576,-5.38983101,0.00051027,120]
[320966770,1711723838586,-3107.95435634,0.0005121,120]
[320966772,1711723838598,-3247.89924547,0.0005121,120]
[320966774,1711723838610,-2237.21233694,0.0005121,120]
[320966956,1711723840535,-166.666666,0.00050122,2]
[320966958,1711723840544,-333.10391186,0.0005121,120]
[320966960,1711723840556,-1188.97585194,0.0005121,120]
[320966963,1711723840567,-960.92480286,0.0005121,120]
[320967352,1711723843923,-431.70164429,0.0005121,120]
[320967354,1711723843935,-286.04965536,0.0005121,120]
[320967366,1711723844034,-294.22028114,0.0005121,120]
[320967368,1711723844044,-166.666666,0.00051489,2]
[320967370,1711723844055,-1870.0,0.000519,30]
[320967372,1711723844065,-269.82492339,0.00051954,2]
[320967375,1711723844079,-730.17507661,0.00051954,2]
[320967377,1711723844090,-309.78313322,0.00051998,4]
[320967379,1711723844100,-221.87441247,0.00051998,4]
[320967381,1711723844111,-305.26973909,0.00051998,4]
[320967383,1711723844121,-1920.29570701,0.00051999,4]
[320967385,1711723844130,-3655.87300424,0.00052,120]
[320967387,1711723844143,-3363.87360861,0.00052,120]
[320967647,1711723846574,-1414.94151429,0.00052,120]
[320967649,1711723846585,-18448.8579112,0.00052,120]
[320967655,1711723846632,-17888.45396166,0.00052,120]
[320967657,1711723846642,-1664.83175865,0.00052052,4]
[320967659,1711723846652,-180.29988921,0.00052052,4]
[320967660,1711723846661,-317.00418473,0.00052052,4]
[320967662,1711723846670,-308.12924833,0.00052052,120]
[320967664,1711723846679,-435.0,0.00052052,4]
[320967666,1711723846688,-4776.57663704,0.00052052,120]
[320967668,1711723846698,-919.86830492,0.00052052,4]